[Event "Titled Tuesday Blitz April 4 Early 2023"]
[White "Duda, Jan-Krzysztof"]
[Black "Salemgareev, Tagir"]
[WhiteFideId "1170546"]
[BlackFideId "24199052"]
[WhiteElo "2790"]
[BlackElo "2360"]
[Result "1-0"]
[Round "10"]
[TimeControl "180+2"]
[Date "2023.04.04"]
[WhiteClock "0:00:25"]
[BlackClock "0:00:01"]

1. e4 {[%clk 0:03:00]}  c5 {[%clk 0:02:21]} 2. Nf3 {[%clk 0:03:00]}  d6 {[%clk 0:02:20]} 3. d4 {[%clk 0:02:57]}  cxd4 {[%clk 0:02:16]} 4. Nxd4 {[%clk 0:02:58]}  Nf6 {[%clk 0:02:16]} 5. Nc3 {[%clk 0:02:59]}  a6 {[%clk 0:02:15]} 6. f3 {[%clk 0:02:53]}  e5 {[%clk 0:01:46]} 7. Nb3 {[%clk 0:02:53]}  Be6 {[%clk 0:01:46]} 8. Be3 {[%clk 0:02:54]}  Nbd7 {[%clk 0:01:44]} 9. g4 {[%clk 0:02:48]}  h6 {[%clk 0:01:41]} 10. Qd2 {[%clk 0:02:43]}  Rc8 {[%clk 0:01:39]} 11. O-O-O {[%clk 0:02:42]}  Be7 {[%clk 0:01:38]} 12. h4 {[%clk 0:02:40]}  b5 {[%clk 0:01:34]} 13. Kb1 {[%clk 0:02:31]}  Qc7 {[%clk 0:01:28]} 14. a3 {[%clk 0:02:13]}  Nb6 {[%clk 0:01:22]} 15. Qf2 {[%clk 0:02:03]}  Nc4 {[%clk 0:01:04]} 16. Bxc4 {[%clk 0:02:02]}  Bxc4 {[%clk 0:01:04]} 17. g5 {[%clk 0:01:56]}  Nh5 {[%clk 0:01:00]} 18. gxh6 {[%clk 0:01:44]}  g6 {[%clk 0:00:59]} 19. Na5 {[%clk 0:01:37]}  Be6 {[%clk 0:00:46]} 20. Bb6 {[%clk 0:01:38]}  Qb8 {[%clk 0:00:43]} 21. Nd5 {[%clk 0:01:38]}  Bxd5 {[%clk 0:00:29]} 22. exd5 {[%clk 0:01:36]}  O-O {[%clk 0:00:30]} 23. Nc6 {[%clk 0:01:28]}  Qb7 {[%clk 0:00:30]} 24. Be3 {[%clk 0:01:28]}  Kh7 {[%clk 0:00:29]} 25. f4 {[%clk 0:01:25]}  exf4 {[%clk 0:00:26]} 26. Bxf4 {[%clk 0:01:26]}  Qd7 {[%clk 0:00:17]} 27. Bg5 {[%clk 0:01:19]}  Bxg5 {[%clk 0:00:15]} 28. hxg5 {[%clk 0:01:20]}  f6 {[%clk 0:00:12]} 29. gxf6 {[%clk 0:01:08]}  Rxf6 {[%clk 0:00:12]} 30. Qd4 {[%clk 0:01:08]}  Rf5 {[%clk 0:00:11]} 31. Rde1 {[%clk 0:01:07]}  Rf7 {[%clk 0:00:07]} 32. Ka1 {[%clk 0:00:33]}  Ng3 {[%clk 0:00:07]} 33. Rhg1 {[%clk 0:00:31]}  Nf5 {[%clk 0:00:07]} 34. Qg4 {[%clk 0:00:30]}  Rg8 {[%clk 0:00:06]} 35. Re6 {[%clk 0:00:30]}  Nxh6 {[%clk 0:00:03]} 36. Qe4 {[%clk 0:00:27]}  Qb7 {[%clk 0:00:01]} 37. Rexg6 {[%clk 0:00:25]} 1-0


[Site "https://www.chess.com"]

[Event "Titled Tuesday Blitz April 4 Early 2023"]
[White "Naroditsky, Daniel"]
[Black "Zhigalko, Sergei"]
[WhiteFideId "2026961"]
[BlackFideId "13502956"]
[WhiteElo "2633"]
[BlackElo "2626"]
[Result "0-1"]
[Round "10"]
[TimeControl "180+2"]
[Date "2023.04.04"]
[WhiteClock "0:00:02"]
[BlackClock "0:00:02"]

1. d4 {[%clk 0:03:00]}  Nf6 {[%clk 0:03:00]} 2. Nc3 {[%clk 0:03:01]}  d5 {[%clk 0:03:00]} 3. Bf4 {[%clk 0:03:02]}  a6 {[%clk 0:02:58]} 4. e3 {[%clk 0:03:02]}  b5 {[%clk 0:02:55]} 5. a3 {[%clk 0:03:02]}  Bb7 {[%clk 0:02:55]} 6. Nf3 {[%clk 0:03:02]}  e6 {[%clk 0:02:56]} 7. b4 {[%clk 0:03:03]}  Nbd7 {[%clk 0:02:49]} 8. Bd3 {[%clk 0:03:03]}  Ne4 {[%clk 0:02:37]} 9. Bxe4 {[%clk 0:03:00]}  dxe4 {[%clk 0:02:37]} 10. Ne5 {[%clk 0:02:46]}  Nf6 {[%clk 0:02:11]} 11. Bg5 {[%clk 0:02:27]}  Be7 {[%clk 0:02:09]} 12. O-O {[%clk 0:02:19]}  O-O {[%clk 0:02:01]} 13. Ne2 {[%clk 0:01:41]}  Ne8 {[%clk 0:01:47]} 14. Bxe7 {[%clk 0:01:38]}  Qxe7 {[%clk 0:01:48]} 15. h3 {[%clk 0:01:37]}  Nd6 {[%clk 0:01:38]} 16. Nf4 {[%clk 0:01:32]}  f6 {[%clk 0:01:29]} 17. Ng4 {[%clk 0:01:32]}  Nc4 {[%clk 0:01:25]} 18. c3 {[%clk 0:01:30]}  e5 {[%clk 0:01:16]} 19. Ne2 {[%clk 0:01:23]}  Rad8 {[%clk 0:01:12]} 20. a4 {[%clk 0:01:20]}  f5 {[%clk 0:01:10]} 21. Nh2 {[%clk 0:01:19]}  f4 {[%clk 0:00:59]} 22. axb5 {[%clk 0:01:19]}  axb5 {[%clk 0:00:55]} 23. Ra7 {[%clk 0:01:19]}  Bc8 {[%clk 0:00:50]} 24. Qc1 {[%clk 0:01:15]}  f3 {[%clk 0:00:44]} 25. Ng3 {[%clk 0:01:13]}  fxg2 {[%clk 0:00:44]} 26. Kxg2 {[%clk 0:01:14]}  Qh4 {[%clk 0:00:43]} 27. Rxc7 {[%clk 0:00:43]}  Bxh3+ {[%clk 0:00:40]} 28. Kg1 {[%clk 0:00:44]}  Bxf1 {[%clk 0:00:40]} 29. Nhxf1 {[%clk 0:00:40]}  Ra8 {[%clk 0:00:19]} 30. Qb1 {[%clk 0:00:35]}  exd4 {[%clk 0:00:17]} 31. cxd4 {[%clk 0:00:34]}  Rae8 {[%clk 0:00:07]} 32. Qa2 {[%clk 0:00:27]}  Qg4 {[%clk 0:00:06]} 33. Nh2 {[%clk 0:00:21]}  Qe6 {[%clk 0:00:04]} 34. Qa7 {[%clk 0:00:18]}  Rf7 {[%clk 0:00:03]} 35. Rxf7 {[%clk 0:00:17]}  Qxf7 {[%clk 0:00:03]} 36. Qc5 {[%clk 0:00:18]}  Rf8 {[%clk 0:00:03]} 37. Nxe4 {[%clk 0:00:16]}  Nd2 {[%clk 0:00:03]} 38. Qc6 {[%clk 0:00:02]}  Nxe4 {[%clk 0:00:03]} 39. Qxe4 {[%clk 0:00:03]}  Qxf2+ {[%clk 0:00:03]} 40. Kh1 {[%clk 0:00:04]}  Qe1+ {[%clk 0:00:03]} 41. Kg2 {[%clk 0:00:04]}  Qxb4 {[%clk 0:00:03]} 42. Nf3 {[%clk 0:00:03]}  Qd6 {[%clk 0:00:03]} 43. Ne5 {[%clk 0:00:02]}  Qe6 {[%clk 0:00:03]} 44. Qb7 {[%clk 0:00:02]}  h6 {[%clk 0:00:02]} 45. Qxb5 {[%clk 0:00:02]}  Qf5 {[%clk 0:00:03]} 46. Qe2 {[%clk 0:00:02]}  Kh7 {[%clk 0:00:03]} 47. Kh2 {[%clk 0:00:02]}  Qe4 {[%clk 0:00:02]} 48. Qd2 {[%clk 0:00:01]}  Qf5 {[%clk 0:00:02]} 49. Qe2 {[%clk 0:00:02]}  Rf6 {[%clk 0:00:02]} 50. Ng4 {[%clk 0:00:01]}  Rg6 {[%clk 0:00:02]} 51. Ne5 {[%clk 0:00:02]}  Rg5 {[%clk 0:00:02]} 52. Nf3 {[%clk 0:00:02]}  Rg4 {[%clk 0:00:02]} 53. Qf2 {[%clk 0:00:02]}  Qh5+ {[%clk 0:00:02]} 0-1


[Site "https://www.chess.com"]

[Event "Titled Tuesday Blitz April 4 Early 2023"]
[White "Zakhartsov, Vladimir"]
[Black "Vidit, Santosh Gujrathi"]
[WhiteFideId "4145097"]
[BlackFideId "5029465"]
[WhiteElo "2497"]
[BlackElo "2651"]
[Result "1-0"]
[Round "10"]
[TimeControl "180+2"]
[Date "2023.04.04"]
[WhiteClock "0:00:08"]
[BlackClock "0:00:02"]

1. e4 {[%clk 0:02:57]}  c5 {[%clk 0:02:59]} 2. Nf3 {[%clk 0:02:56]}  e6 {[%clk 0:02:58]} 3. g3 {[%clk 0:02:56]}  Nc6 {[%clk 0:02:55]} 4. Bg2 {[%clk 0:02:56]}  Nf6 {[%clk 0:02:55]} 5. Qe2 {[%clk 0:02:56]}  e5 {[%clk 0:02:55]} 6. O-O {[%clk 0:02:56]}  d6 {[%clk 0:02:49]} 7. c3 {[%clk 0:02:54]}  Be7 {[%clk 0:02:48]} 8. h3 {[%clk 0:02:51]}  O-O {[%clk 0:02:47]} 9. Rd1 {[%clk 0:02:50]}  Be6 {[%clk 0:02:38]} 10. d4 {[%clk 0:02:49]}  cxd4 {[%clk 0:02:36]} 11. cxd4 {[%clk 0:02:50]}  exd4 {[%clk 0:02:33]} 12. Nxd4 {[%clk 0:02:50]}  Nxd4 {[%clk 0:02:32]} 13. Rxd4 {[%clk 0:02:51]}  Qc8 {[%clk 0:02:32]} 14. Nc3 {[%clk 0:02:52]}  Bxh3 {[%clk 0:02:32]} 15. Bg5 {[%clk 0:02:46]}  Bxg2 {[%clk 0:02:29]} 16. Kxg2 {[%clk 0:02:47]}  Qc5 {[%clk 0:02:19]} 17. Be3 {[%clk 0:02:32]}  Rfe8 {[%clk 0:02:06]} 18. Rad1 {[%clk 0:02:29]}  Qc6 {[%clk 0:02:03]} 19. Qf3 {[%clk 0:02:21]}  Rac8 {[%clk 0:01:44]} 20. Rh1 {[%clk 0:00:41]}  Qa6 {[%clk 0:00:47]} 21. g4 {[%clk 0:00:37]}  Nd7 {[%clk 0:00:23]} 22. Rd5 {[%clk 0:00:16]}  Nf8 {[%clk 0:00:21]} 23. Rdh5 {[%clk 0:00:16]}  g6 {[%clk 0:00:03]} 24. Rxh7 {[%clk 0:00:09]}  Nxh7 {[%clk 0:00:02]} 25. Rxh7 {[%clk 0:00:09]}  Kxh7 {[%clk 0:00:01]} 26. Qxf7+ {[%clk 0:00:08]}  Kh8 {[%clk 0:00:02]} 27. Bd4+ {[%clk 0:00:08]} 1-0


[Site "https://www.chess.com"]

[Event "Titled Tuesday Blitz April 4 Early 2023"]
[White "Martinez Alcantara, Jose Eduardo"]
[Black "Corrales Jimenez, Fidel"]
[WhiteFideId "3805662"]
[BlackFideId "3506690"]
[WhiteElo "2711"]
[BlackElo "2541"]
[Result "1-0"]
[Round "10"]
[TimeControl "180+2"]
[Date "2023.04.04"]
[WhiteClock "0:01:15"]
[BlackClock "0:00:10"]

1. e4 {[%clk 0:03:00]}  c5 {[%clk 0:02:59]} 2. Nf3 {[%clk 0:03:01]}  d6 {[%clk 0:02:59]} 3. c3 {[%clk 0:03:02]}  Nf6 {[%clk 0:02:59]} 4. h3 {[%clk 0:03:02]}  Bd7 {[%clk 0:02:57]} 5. Bd3 {[%clk 0:03:03]}  e5 {[%clk 0:02:56]} 6. Bc2 {[%clk 0:03:03]}  Be7 {[%clk 0:02:57]} 7. d4 {[%clk 0:03:03]}  cxd4 {[%clk 0:02:58]} 8. cxd4 {[%clk 0:03:04]}  Nc6 {[%clk 0:02:57]} 9. Nc3 {[%clk 0:03:02]}  Nxd4 {[%clk 0:02:56]} 10. Nxd4 {[%clk 0:03:03]}  exd4 {[%clk 0:02:57]} 11. Qxd4 {[%clk 0:03:04]}  Qb6 {[%clk 0:02:48]} 12. Qxb6 {[%clk 0:02:58]}  axb6 {[%clk 0:02:49]} 13. O-O {[%clk 0:02:58]}  b5 {[%clk 0:02:49]} 14. Bd3 {[%clk 0:02:24]}  b4 {[%clk 0:02:47]} 15. Ne2 {[%clk 0:02:24]}  d5 {[%clk 0:02:41]} 16. exd5 {[%clk 0:02:20]}  Nxd5 {[%clk 0:02:42]} 17. Be4 {[%clk 0:02:20]}  Ra5 {[%clk 0:02:36]} 18. Rd1 {[%clk 0:02:16]}  Nf6 {[%clk 0:02:21]} 19. Bxb7 {[%clk 0:02:15]}  O-O {[%clk 0:02:21]} 20. Be3 {[%clk 0:02:07]}  Be6 {[%clk 0:02:09]} 21. Nd4 {[%clk 0:02:06]}  Bxa2 {[%clk 0:02:09]} 22. Nc6 {[%clk 0:02:06]}  Rb5 {[%clk 0:01:20]} 23. Nxe7+ {[%clk 0:02:06]}  Kh8 {[%clk 0:01:20]} 24. Bc6 {[%clk 0:02:00]}  Ra5 {[%clk 0:01:17]} 25. Bf3 {[%clk 0:01:52]}  b3 {[%clk 0:01:09]} 26. Rac1 {[%clk 0:01:50]}  h6 {[%clk 0:01:08]} 27. g4 {[%clk 0:01:49]}  Re5 {[%clk 0:01:05]} 28. Nf5 {[%clk 0:01:46]}  Kh7 {[%clk 0:01:01]} 29. Bd4 {[%clk 0:01:47]}  Re6 {[%clk 0:01:01]} 30. Rc6 {[%clk 0:01:45]}  Rfe8 {[%clk 0:00:58]} 31. Bxf6 {[%clk 0:01:43]}  gxf6 {[%clk 0:00:56]} 32. Rc7 {[%clk 0:01:33]}  Kg6 {[%clk 0:00:52]} 33. Kg2 {[%clk 0:01:32]}  h5 {[%clk 0:00:49]} 34. Nh4+ {[%clk 0:01:23]}  Kg5 {[%clk 0:00:44]} 35. Nf5 {[%clk 0:01:21]}  hxg4 {[%clk 0:00:44]} 36. hxg4 {[%clk 0:01:22]}  Re1 {[%clk 0:00:39]} 37. Rcc1 {[%clk 0:01:21]}  R1e5 {[%clk 0:00:35]} 38. Ng3 {[%clk 0:01:20]}  R8e7 {[%clk 0:00:26]} 39. Rh1 {[%clk 0:01:20]}  Kg6 {[%clk 0:00:26]} 40. Nf5 {[%clk 0:01:20]}  Re8 {[%clk 0:00:24]} 41. Rh6+ {[%clk 0:01:17]}  Kg5 {[%clk 0:00:24]} 42. Rh5+ {[%clk 0:01:18]}  Kg6 {[%clk 0:00:23]} 43. Nh4+ {[%clk 0:01:17]}  Kg7 {[%clk 0:00:23]} 44. Rxe5 {[%clk 0:01:17]}  Rxe5 {[%clk 0:00:24]} 45. Nf5+ {[%clk 0:01:17]}  Kg6 {[%clk 0:00:25]} 46. Kg3 {[%clk 0:01:17]}  Re8 {[%clk 0:00:22]} 47. Kf4 {[%clk 0:01:18]}  Rh8 {[%clk 0:00:21]} 48. Be4 {[%clk 0:01:18]}  Rh2 {[%clk 0:00:19]} 49. Nh4+ {[%clk 0:01:12]}  Kg7 {[%clk 0:00:11]} 50. Kg3 {[%clk 0:01:13]}  Rxh4 {[%clk 0:00:09]} 51. Kxh4 {[%clk 0:01:14]}  Kf8 {[%clk 0:00:09]} 52. Bf5 {[%clk 0:01:14]}  Ke7 {[%clk 0:00:10]} 53. Kg3 {[%clk 0:01:15]} 1-0


[Site "https://www.chess.com"]

[Event "Titled Tuesday Blitz April 4 Early 2023"]
[White "Movahed, Sina"]
[Black "Zemlyanskii, Ivan"]
[WhiteFideId "42520835"]
[BlackFideId "24249971"]
[WhiteElo "2225"]
[BlackElo "2419"]
[Result "0-1"]
[Round "10"]
[TimeControl "180+2"]
[Date "2023.04.04"]
[WhiteClock "0:00:03"]
[BlackClock "0:00:05"]

1. Nf3 {[%clk 0:03:00]}  d5 {[%clk 0:02:57]} 2. g3 {[%clk 0:03:00]}  Nf6 {[%clk 0:02:54]} 3. Bg2 {[%clk 0:03:01]}  c5 {[%clk 0:02:54]} 4. O-O {[%clk 0:03:00]}  e6 {[%clk 0:02:55]} 5. d4 {[%clk 0:02:58]}  cxd4 {[%clk 0:02:56]} 6. Nxd4 {[%clk 0:02:58]}  e5 {[%clk 0:02:57]} 7. Nb3 {[%clk 0:02:49]}  Be6 {[%clk 0:02:53]} 8. Bg5 {[%clk 0:02:47]}  Nbd7 {[%clk 0:02:52]} 9. Nc3 {[%clk 0:02:37]}  Be7 {[%clk 0:02:52]} 10. Bxf6 {[%clk 0:02:27]}  Nxf6 {[%clk 0:02:53]} 11. Qd2 {[%clk 0:02:23]}  O-O {[%clk 0:02:35]} 12. Rad1 {[%clk 0:02:22]}  d4 {[%clk 0:02:32]} 13. Ne4 {[%clk 0:02:22]}  Nxe4 {[%clk 0:02:22]} 14. Bxe4 {[%clk 0:02:23]}  Qc7 {[%clk 0:02:13]} 15. e3 {[%clk 0:02:16]}  dxe3 {[%clk 0:02:03]} 16. Qxe3 {[%clk 0:02:17]}  a5 {[%clk 0:02:04]} 17. Bd5 {[%clk 0:01:49]}  Bxd5 {[%clk 0:01:47]} 18. Rxd5 {[%clk 0:01:50]}  Qxc2 {[%clk 0:01:45]} 19. Rd7 {[%clk 0:01:21]}  Bf6 {[%clk 0:01:33]} 20. Nc5 {[%clk 0:01:18]}  Qxb2 {[%clk 0:01:21]} 21. a4 {[%clk 0:00:57]}  b6 {[%clk 0:01:16]} 22. Ne4 {[%clk 0:00:56]}  Rfd8 {[%clk 0:01:05]} 23. Rb7 {[%clk 0:00:45]}  Rab8 {[%clk 0:01:00]} 24. Ra7 {[%clk 0:00:44]}  Qc2 {[%clk 0:00:57]} 25. Qf3 {[%clk 0:00:35]}  Qc6 {[%clk 0:00:39]} 26. Rxf7 {[%clk 0:00:30]}  Qe6 {[%clk 0:00:39]} 27. Ra7 {[%clk 0:00:23]}  Rd4 {[%clk 0:00:36]} 28. Rc1 {[%clk 0:00:20]}  Rbd8 {[%clk 0:00:24]} 29. Rcc7 {[%clk 0:00:19]}  R4d7 {[%clk 0:00:21]} 30. Rxd7 {[%clk 0:00:19]}  Rxd7 {[%clk 0:00:21]} 31. Ra8+ {[%clk 0:00:19]}  Bd8 {[%clk 0:00:19]} 32. Ng5 {[%clk 0:00:14]}  Qd5 {[%clk 0:00:18]} 33. Qf5 {[%clk 0:00:10]}  g6 {[%clk 0:00:15]} 34. Qe6+ {[%clk 0:00:06]}  Kf8 {[%clk 0:00:11]} 35. Qf6+ {[%clk 0:00:01]}  Kg8 {[%clk 0:00:06]} 36. Qe6+ {[%clk 0:00:01]}  Kf8 {[%clk 0:00:06]} 37. Qf6+ {[%clk 0:00:02]}  Ke8 {[%clk 0:00:03]} 38. Qh8+ {[%clk 0:00:02]}  Ke7 {[%clk 0:00:04]} 39. Qxh7+ {[%clk 0:00:02]}  Kd6 {[%clk 0:00:04]} 40. Qxg6+ {[%clk 0:00:03]}  Kc5 {[%clk 0:00:05]} 41. Rc8+ {[%clk 0:00:03]}  Kb4 {[%clk 0:00:05]} 42. Qb1+ {[%clk 0:00:03]}  Kxa4 {[%clk 0:00:06]} 43. Ne4 {[%clk 0:00:03]}  Qd1+ {[%clk 0:00:06]} 44. Qxd1+ {[%clk 0:00:03]}  Rxd1+ {[%clk 0:00:07]} 45. Kg2 {[%clk 0:00:04]}  Rd4 {[%clk 0:00:07]} 46. Nc3+ {[%clk 0:00:05]}  Kb4 {[%clk 0:00:07]} 47. h4 {[%clk 0:00:04]}  a4 {[%clk 0:00:07]} 48. h5 {[%clk 0:00:04]}  Bg5 {[%clk 0:00:03]} 49. Na2+ {[%clk 0:00:03]}  Kb3 {[%clk 0:00:03]} 50. Nc3 {[%clk 0:00:03]}  a3 {[%clk 0:00:03]} 51. Nb5 {[%clk 0:00:03]}  a2 {[%clk 0:00:03]} 52. Nxd4+ {[%clk 0:00:03]}  exd4 {[%clk 0:00:04]} 53. Ra8 {[%clk 0:00:04]}  Kb2 {[%clk 0:00:04]} 54. f4 {[%clk 0:00:03]}  Bh6 {[%clk 0:00:05]} 55. Kf3 {[%clk 0:00:04]}  a1=Q {[%clk 0:00:05]} 56. Rxa1 {[%clk 0:00:03]}  Kxa1 {[%clk 0:00:06]} 57. g4 {[%clk 0:00:03]}  Kb2 {[%clk 0:00:05]} 58. g5 {[%clk 0:00:04]}  d3 {[%clk 0:00:06]} 59. gxh6 {[%clk 0:00:04]}  d2 {[%clk 0:00:07]} 60. h7 {[%clk 0:00:05]}  d1=Q+ {[%clk 0:00:07]} 61. Ke3 {[%clk 0:00:03]}  Qxh5 {[%clk 0:00:05]} 0-1


[Site "https://www.chess.com"]

[Event "Titled Tuesday Blitz April 4 Early 2023"]
[White "Rakhmatullaev, Almas"]
[Black "Flores, Diego"]
[WhiteFideId "14205793"]
[BlackFideId "108049"]
[WhiteElo "2221"]
[BlackElo "2613"]
[Result "1-0"]
[Round "10"]
[TimeControl "180+2"]
[Date "2023.04.04"]
[WhiteClock "0:00:54"]
[BlackClock "0:00:03"]

1. e4 {[%clk 0:03:00]}  c5 {[%clk 0:02:59]} 2. c3 {[%clk 0:03:01]}  Nf6 {[%clk 0:02:56]} 3. e5 {[%clk 0:03:01]}  Nd5 {[%clk 0:02:56]} 4. d4 {[%clk 0:03:02]}  cxd4 {[%clk 0:02:57]} 5. Qxd4 {[%clk 0:03:03]}  e6 {[%clk 0:02:57]} 6. Nf3 {[%clk 0:03:03]}  Nc6 {[%clk 0:02:56]} 7. Qe4 {[%clk 0:03:04]}  f5 {[%clk 0:02:56]} 8. Qe2 {[%clk 0:03:04]}  Qc7 {[%clk 0:02:33]} 9. g3 {[%clk 0:03:04]}  b5 {[%clk 0:02:33]} 10. Bg2 {[%clk 0:03:04]}  a5 {[%clk 0:02:33]} 11. O-O {[%clk 0:03:02]}  Ba6 {[%clk 0:02:33]} 12. Nh4 {[%clk 0:03:02]}  Nde7 {[%clk 0:02:21]} 13. Rd1 {[%clk 0:02:47]}  b4 {[%clk 0:01:53]} 14. Qe1 {[%clk 0:02:47]}  Rc8 {[%clk 0:01:34]} 15. Bf4 {[%clk 0:02:40]}  Ng6 {[%clk 0:01:29]} 16. Nxg6 {[%clk 0:02:30]}  hxg6 {[%clk 0:01:30]} 17. Nd2 {[%clk 0:02:28]}  bxc3 {[%clk 0:01:06]} 18. bxc3 {[%clk 0:02:29]}  g5 {[%clk 0:01:06]} 19. Bxg5 {[%clk 0:02:29]}  Nxe5 {[%clk 0:01:04]} 20. Nb3 {[%clk 0:02:15]}  Nc4 {[%clk 0:00:40]} 21. Bf4 {[%clk 0:02:08]}  Qa7 {[%clk 0:00:37]} 22. Nd4 {[%clk 0:02:04]}  Be7 {[%clk 0:00:36]} 23. Nxe6 {[%clk 0:01:49]}  dxe6 {[%clk 0:00:37]} 24. Qxe6 {[%clk 0:01:49]}  Qb6 {[%clk 0:00:33]} 25. Qd7+ {[%clk 0:01:40]}  Kf8 {[%clk 0:00:27]} 26. Rab1 {[%clk 0:01:30]}  Qf6 {[%clk 0:00:19]} 27. h4 {[%clk 0:01:19]}  Rd8 {[%clk 0:00:18]} 28. Qa7 {[%clk 0:01:11]}  Kf7 {[%clk 0:00:18]} 29. Bg5 {[%clk 0:01:05]}  Qe6 {[%clk 0:00:18]} 30. Re1 {[%clk 0:01:03]}  Rd7 {[%clk 0:00:18]} 31. Rxe6 {[%clk 0:00:55]}  Rxa7 {[%clk 0:00:18]} 32. Bd5 {[%clk 0:00:56]}  Bxg5 {[%clk 0:00:06]} 33. Rxa6+ {[%clk 0:00:54]}  Ke7 {[%clk 0:00:03]} 34. Rxa7+ {[%clk 0:00:54]} 1-0


[Site "https://www.chess.com"]

[Event "Titled Tuesday Blitz April 4 Early 2023"]
[White "Yanchenko, Roman"]
[Black "Indjic, Aleksandar"]
[WhiteFideId "4137329"]
[BlackFideId "911925"]
[WhiteElo "2491"]
[BlackElo "2614"]
[Result "0-1"]
[Round "10"]
[TimeControl "180+2"]
[Date "2023.04.04"]
[WhiteClock "0:00:03"]
[BlackClock "0:01:24"]

1. d4 {[%clk 0:03:00]}  Nf6 {[%clk 0:02:56]} 2. Nf3 {[%clk 0:03:00]}  e6 {[%clk 0:02:56]} 3. c4 {[%clk 0:03:01]}  c5 {[%clk 0:02:56]} 4. Nc3 {[%clk 0:03:01]}  cxd4 {[%clk 0:02:55]} 5. Nxd4 {[%clk 0:03:02]}  Nc6 {[%clk 0:02:55]} 6. e3 {[%clk 0:03:02]}  Bb4 {[%clk 0:02:51]} 7. Bd2 {[%clk 0:03:02]}  O-O {[%clk 0:02:50]} 8. Be2 {[%clk 0:03:02]}  d5 {[%clk 0:02:50]} 9. Nxc6 {[%clk 0:02:54]}  bxc6 {[%clk 0:02:49]} 10. a3 {[%clk 0:02:54]}  Bd6 {[%clk 0:02:49]} 11. O-O {[%clk 0:02:52]}  e5 {[%clk 0:02:41]} 12. cxd5 {[%clk 0:02:30]}  cxd5 {[%clk 0:02:42]} 13. Rc1 {[%clk 0:02:10]}  a6 {[%clk 0:02:41]} 14. Na4 {[%clk 0:02:08]}  Rb8 {[%clk 0:02:32]} 15. b4 {[%clk 0:02:02]}  Ne4 {[%clk 0:02:27]} 16. Nc5 {[%clk 0:01:54]}  Nxc5 {[%clk 0:02:24]} 17. bxc5 {[%clk 0:01:54]}  Bc7 {[%clk 0:02:25]} 18. Bc3 {[%clk 0:01:41]}  Re8 {[%clk 0:02:24]} 19. Qa4 {[%clk 0:01:37]}  Re6 {[%clk 0:02:19]} 20. Rb1 {[%clk 0:01:34]}  Ra8 {[%clk 0:02:12]} 21. Rfd1 {[%clk 0:01:16]}  Bd7 {[%clk 0:02:12]} 22. Qb3 {[%clk 0:01:01]}  Bc6 {[%clk 0:02:12]} 23. Bc4 {[%clk 0:00:30]}  Rb8 {[%clk 0:02:10]} 24. Qa2 {[%clk 0:00:25]}  Rxb1 {[%clk 0:02:10]} 25. Qxb1 {[%clk 0:00:25]}  Qa8 {[%clk 0:02:08]} 26. Bf1 {[%clk 0:00:20]}  Rg6 {[%clk 0:02:07]} 27. g3 {[%clk 0:00:19]}  Qc8 {[%clk 0:02:02]} 28. Bg2 {[%clk 0:00:17]}  e4 {[%clk 0:02:03]} 29. Qb4 {[%clk 0:00:15]}  h5 {[%clk 0:02:02]} 30. Rb1 {[%clk 0:00:14]}  h4 {[%clk 0:02:02]} 31. Qd4 {[%clk 0:00:13]}  Kh7 {[%clk 0:02:00]} 32. Qd1 {[%clk 0:00:12]}  Qf5 {[%clk 0:01:59]} 33. Qf1 {[%clk 0:00:11]}  Bd7 {[%clk 0:01:57]} 34. Bd4 {[%clk 0:00:09]}  h3 {[%clk 0:01:56]} 35. Bh1 {[%clk 0:00:09]}  Be5 {[%clk 0:01:47]} 36. f3 {[%clk 0:00:09]}  Bxd4 {[%clk 0:01:35]} 37. exd4 {[%clk 0:00:10]}  exf3 {[%clk 0:01:32]} 38. Bxf3 {[%clk 0:00:09]}  Rf6 {[%clk 0:01:31]} 39. Rb3 {[%clk 0:00:07]}  Bb5 {[%clk 0:01:29]} 40. Qd1 {[%clk 0:00:06]}  Ba4 {[%clk 0:01:25]} 41. Qe2 {[%clk 0:00:02]}  Bxb3 {[%clk 0:01:24]} 42. Qf1 {[%clk 0:00:03]} 0-1


[Site "https://www.chess.com"]

[Event "Titled Tuesday Blitz April 4 Early 2023"]
[White "Kollars, Dmitrij"]
[Black "Papasimakopoulos, Alexandros"]
[WhiteFideId "12909572"]
[BlackFideId "4244125"]
[WhiteElo "2584"]
[BlackElo "2359"]
[Result "1-0"]
[Round "10"]
[TimeControl "180+2"]
[Date "2023.04.04"]
[WhiteClock "0:00:51"]
[BlackClock "0:00:01"]

1. e4 {[%clk 0:03:00]}  e6 {[%clk 0:02:59]} 2. d4 {[%clk 0:03:00]}  d5 {[%clk 0:03:00]} 3. Nc3 {[%clk 0:03:01]}  Bb4 {[%clk 0:02:59]} 4. Ne2 {[%clk 0:03:00]}  Nc6 {[%clk 0:02:57]} 5. a3 {[%clk 0:02:57]}  Ba5 {[%clk 0:02:55]} 6. b4 {[%clk 0:02:54]}  Bb6 {[%clk 0:02:56]} 7. e5 {[%clk 0:02:43]}  Nge7 {[%clk 0:02:55]} 8. Na4 {[%clk 0:02:41]}  O-O {[%clk 0:02:55]} 9. Be3 {[%clk 0:02:29]}  Nf5 {[%clk 0:02:53]} 10. c3 {[%clk 0:02:05]}  f6 {[%clk 0:02:49]} 11. exf6 {[%clk 0:02:06]}  Nxe3 {[%clk 0:02:40]} 12. fxe3 {[%clk 0:02:05]}  Qxf6 {[%clk 0:02:40]} 13. Nf4 {[%clk 0:01:54]}  e5 {[%clk 0:02:29]} 14. Nxb6 {[%clk 0:01:53]}  exf4 {[%clk 0:01:46]} 15. Nxa8 {[%clk 0:01:48]}  fxe3 {[%clk 0:01:14]} 16. Qf3 {[%clk 0:01:47]}  Qg5 {[%clk 0:01:04]} 17. Qg3 {[%clk 0:01:45]}  Qf6 {[%clk 0:00:46]} 18. Qxe3 {[%clk 0:01:26]}  Bd7 {[%clk 0:00:34]} 19. Nxc7 {[%clk 0:01:24]}  Qd6 {[%clk 0:00:34]} 20. Nb5 {[%clk 0:01:18]}  Qg6 {[%clk 0:00:31]} 21. O-O-O {[%clk 0:01:08]}  a6 {[%clk 0:00:26]} 22. Nc7 {[%clk 0:00:58]}  Qd6 {[%clk 0:00:19]} 23. Qg3 {[%clk 0:00:57]}  Qh6+ {[%clk 0:00:10]} 24. Kb2 {[%clk 0:00:53]}  Ne7 {[%clk 0:00:09]} 25. Bd3 {[%clk 0:00:53]}  Bf5 {[%clk 0:00:06]} 26. Rhf1 {[%clk 0:00:52]}  Bxd3 {[%clk 0:00:02]} 27. Rxf8+ {[%clk 0:00:53]}  Kxf8 {[%clk 0:00:02]} 28. Rxd3 {[%clk 0:00:54]}  Qc6 {[%clk 0:00:02]} 29. Rf3+ {[%clk 0:00:52]}  Kg8 {[%clk 0:00:02]} 30. Qf4 {[%clk 0:00:52]}  h6 {[%clk 0:00:02]} 31. Qf7+ {[%clk 0:00:52]}  Kh8 {[%clk 0:00:02]} 32. Ne6 {[%clk 0:00:52]}  Nf5 {[%clk 0:00:01]} 33. Rxf5 {[%clk 0:00:51]}  Qc4 {[%clk 0:00:01]} 34. Qxg7# {[%clk 0:00:51]} 1-0


[Site "https://www.chess.com"]